fUSD/lending_fUSD_20250519
["ID","MTS","AMOUNT","RATE_DAILY","PERIOD"]
[361580159,1747623041040,-403.44985875,0.00013698,2]
[361580160,1747623041049,-397.30413447,0.00013698,2]
[361580161,1747623041058,-400.0,0.00013698,2]
[361580162,1747623041067,-400.0,0.00013698,2]
[361580163,1747623041076,-400.0,0.00013698,2]
[361580164,1747623041085,-400.0,0.00013698,2]
[361580165,1747623041094,-400.0,0.00013698,2]
[361580166,1747623041104,-400.0,0.00013698,2]
[361580167,1747623041113,-400.0,0.00013698,2]
[361580168,1747623041122,-370.09594008,0.00013698,2]
[361580169,1747623041132,-400.0,0.00013698,2]
[361580170,1747623041141,-400.0,0.00013698,2]
[361580171,1747623041150,-402.77040668,0.00013698,2]
[361580172,1747623041159,-400.0,0.00013698,2]
[361580173,1747623041168,-400.0,0.00013698,2]
[361580174,1747623041177,-400.0,0.00013698,2]
[361580175,1747623041186,-397.51341028,0.00013698,2]
[361580176,1747623041195,-529.81485947,0.00013698,2]
[361580177,1747623041205,-400.0,0.00013698,2]
[361580178,1747623041214,-400.0,0.00013698,2]
[361580179,1747623041223,-200.18413577,0.00013698,2]
[361580180,1747623041233,-400.0,0.00013698,2]
[361580181,1747623041242,-557.79,0.00013698,2]
[361580182,1747623041251,-401.12847878,0.00013698,2]
[361580183,1747623041262,-150.39055178,0.00013698,2]
[361580184,1747623041271,-400.0,0.00013698,2]
[361580185,1747623041281,-400.0,0.00013698,2]
[361580186,1747623041290,-400.0,0.00013698,2]
[361580187,1747623041300,-400.0,0.00013698,2]
[361580188,1747623041310,-400.0,0.00013698,2]
[361580189,1747623041319,-400.0,0.00013698,2]
[361580190,1747623041328,-400.0,0.00013698,2]
[361580191,1747623041337,-402.49533788,0.00013698,2]
[361580192,1747623041346,-400.0,0.00013698,2]
[361580193,1747623041355,-400.0,0.00013698,2]
[361580194,1747623041364,-402.91996333,0.00013698,2]
[361580195,1747623041374,-403.07449719,0.00013698,2]
[361580196,1747623041383,-400.0,0.00013698,2]
[361580197,1747623041392,-719.99,0.00013698,2]
[361580198,1747623041401,-400.0,0.00013698,2]
[361580199,1747623041411,-400.0,0.00013698,2]
[361580200,1747623041420,-400.0,0.00013698,2]
[361580201,1747623041429,-400.0,0.00013698,2]
[361580202,1747623041439,-400.0,0.00013698,2]
[361580203,1747623041448,-400.0,0.00013698,2]
[361580204,1747623041457,-400.0,0.00013698,2]
[361580205,1747623041466,-400.0,0.00013698,2]
[361580206,1747623041475,-400.0,0.00013698,2]
[361580207,1747623041484,-400.0,0.00013698,2]
[361580208,1747623041494,-400.48229603,0.00013698,2]
[361580209,1747623041502,-400.0,0.00013698,2]
[361580210,1747623041511,-400.89093593,0.00013698,2]
[361580211,1747623041521,-400.0,0.00013698,2]
[361580212,1747623041530,-400.0,0.00013698,2]
[361580213,1747623041539,-400.0,0.00013698,2]
[361580214,1747623041548,-400.0,0.00013698,2]
[361580215,1747623041558,-400.0,0.00013698,2]
[361580216,1747623041567,-400.0,0.00013698,2]
[361580217,1747623041576,-400.0,0.00013698,2]
[361580218,1747623041585,-400.0,0.00013698,2]
[361580219,1747623041595,-400.0,0.00013698,2]
[361580220,1747623041604,-400.0,0.00013698,2]
[361580221,1747623041612,-402.77372088,0.00013698,2]
[361580222,1747623041621,-400.0,0.00013698,2]
[361580223,1747623041630,-400.0,0.00013698,2]
[361580224,1747623041639,-668.16,0.00013698,2]
[361580225,1747623041647,-349.23171662,0.00013698,2]
[361580226,1747623041656,-400.0,0.00013698,2]
[361580227,1747623041665,-400.0,0.00013698,2]
[361580228,1747623041674,-400.0,0.00013698,2]
[361580229,1747623041683,-400.0,0.00013698,2]
[361580230,1747623041692,-400.0,0.00013698,2]
[361580231,1747623041701,-400.0,0.00013698,2]
[361580232,1747623041710,-400.0,0.00013698,2]
[361580233,1747623041719,-400.0,0.00013698,2]
[361580234,1747623041728,-556.62,0.00013698,2]
[361580235,1747623041737,-537.72,0.00013698,2]
[361580236,1747623041746,-400.0,0.00013698,2]
[361580237,1747623041755,-744.3,0.00013698,2]
[361580238,1747623041764,-400.0,0.00013698,2]
[361580239,1747623041773,-400.0,0.00013698,2]
[361580240,1747623041782,-400.0,0.00013698,2]
[361580241,1747623041791,-494.8001522,0.00013698,2]
[361580242,1747623041801,-400.0,0.00013698,2]
[361580243,1747623041811,-400.0,0.00013698,2]
[361580244,1747623041820,-400.0,0.00013698,2]
[361580245,1747623041829,-400.0,0.00013698,2]
[361580246,1747623041838,-565.63,0.00013698,2]
[361580247,1747623041847,-400.0,0.00013698,2]
[361580248,1747623041857,-400.0,0.00013698,2]
[361580249,1747623041866,-400.0,0.00013698,2]
[361580250,1747623041875,-400.0,0.00013698,2]
[361580251,1747623041884,-400.0,0.00013698,2]
[361580252,1747623041893,-400.0,0.00013698,2]
[361580253,1747623041902,-405.30858522,0.00013698,2]
[361580254,1747623041911,-400.0,0.00013698,2]
[361580255,1747623041925,-400.0,0.00013698,2]
[361580256,1747623041934,-400.0,0.00013698,2]
[361580257,1747623041943,-400.0,0.00013698,2]
[361580258,1747623041953,-400.0,0.00013698,2]
[361580259,1747623041965,-400.0,0.00013698,2]
[361580260,1747623041975,-400.0,0.00013698,2]
[361580261,1747623041984,-400.0,0.00013698,2]
[361580262,1747623041994,-400.0,0.00013698,2]
[361580263,1747623042004,-400.0,0.00013698,2]
[361580264,1747623042013,-400.0,0.00013698,2]
[361580265,1747623042022,-400.0,0.00013698,2]
[361580266,1747623042031,-400.0,0.00013698,2]
[361580267,1747623042042,-400.0,0.00013698,2]
[361580268,1747623042051,-400.0,0.00013698,2]
[361580269,1747623042061,-541.29,0.00013698,2]
[361580270,1747623042070,-400.0,0.00013698,2]
[361580271,1747623042080,-400.0,0.00013698,2]
[361580272,1747623042089,-400.0,0.00013698,2]
[361580273,1747623042099,-400.0,0.00013698,2]
[361580274,1747623042108,-400.0,0.00013698,2]
[361580275,1747623042117,-401.61153516,0.00013698,2]
[361580276,1747623042126,-400.0,0.00013698,2]
[361580277,1747623042135,-400.0,0.00013698,2]
[361580278,1747623042147,-489.66,0.00013698,2]
[361580279,1747623042158,-400.0,0.00013698,2]
[361580280,1747623042169,-275.62957157,0.00013698,2]
[361580281,1747623042179,-400.0,0.00013698,2]
[361580282,1747623042189,-400.0,0.00013698,2]
[361580283,1747623042198,-400.0,0.00013698,2]
[361580284,1747623042208,-400.0,0.00013698,2]
[361580285,1747623042218,-400.0,0.00013698,2]
[361580286,1747623042227,-400.0,0.00013698,2]
[361580287,1747623042237,-400.81584776,0.00013698,2]
[361580288,1747623042247,-400.0,0.00013698,2]
[361580289,1747623042257,-724.44,0.00013698,2]
[361580290,1747623042266,-400.0,0.00013698,2]
[361580291,1747623042276,-400.57752208,0.00013698,2]
[361580292,1747623042285,-530.18,0.00013698,2]
[361580293,1747623042294,-400.0,0.00013698,2]
[361580294,1747623042305,-400.0,0.00013698,2]
[361580295,1747623042315,-155.38367855,0.00013698,2]
[361580296,1747623042325,-400.0,0.00013698,2]
[361580297,1747623042334,-987.94,0.00013698,2]
[361580298,1747623042343,-300.55071238,0.00013698,2]
[361580299,1747623042353,-400.0,0.00013698,2]
[361580300,1747623042362,-401.03288202,0.00013698,2]
[361580301,1747623042372,-400.0,0.00013698,2]
[361580302,1747623042381,-400.0,0.00013698,2]
[361580303,1747623042391,-400.0,0.00013698,2]
[361580304,1747623042400,-400.0,0.00013698,2]
[361580305,1747623042410,-890.69,0.00013698,2]
[361580306,1747623042419,-400.0,0.00013698,2]
[361580307,1747623042428,-400.0,0.00013698,2]
[361580308,1747623042437,-400.0,0.00013698,2]
[361580309,1747623042447,-154.34142888,0.00013698,2]
[361580310,1747623042456,-400.0,0.00013698,2]
[361580311,1747623042466,-400.0,0.00013698,2]
[361580312,1747623042475,-400.0,0.00013698,2]
[361580313,1747623042484,-400.0,0.00013698,2]
[361580314,1747623042494,-400.0,0.00013698,2]
[361580315,1747623042503,-768.16,0.00013698,2]
[361580316,1747623042512,-454.91,0.00013698,2]
[361580317,1747623042522,-400.0,0.00013698,2]
[361580318,1747623042531,-400.0,0.00013698,2]
[361580319,1747623042540,-400.0,0.00013698,2]
[361580320,1747623042549,-400.0,0.00013698,2]
[361580321,1747623042564,-400.0,0.00013698,2]
[361580322,1747623042573,-400.0,0.00013698,2]
[361580323,1747623042582,-607.06,0.00013698,2]
[361580324,1747623042591,-400.0,0.00013698,2]
[361580325,1747623042600,-403.83171747,0.00013698,2]
[361580327,1747623042610,-400.0,0.00013698,2]
[361580329,1747623042619,-632.44,0.00013698,2]
[361580330,1747623042629,-400.0,0.00013698,2]
[361580331,1747623042638,-398.28994506,0.00013698,2]
[361580332,1747623042647,-285.33315817,0.00013698,2]
[361580333,1747623042656,-1070.31,0.00013698,2]
[361580334,1747623042666,-400.0,0.00013698,2]
[361580335,1747623042675,-400.0,0.00013698,2]
[361580336,1747623042684,-715.85,0.00013698,2]
[361580337,1747623042693,-400.0,0.00013698,2]
[361580338,1747623042702,-522.83,0.00013698,2]
[361580340,1747623042711,-791.21,0.00013698,2]
[361580341,1747623042720,-425.68710645,0.00013698,2]
[361580342,1747623042729,-400.7176798,0.00013698,2]
[361580343,1747623042738,-400.0,0.00013698,2]
[361580344,1747623042747,-754.24,0.00013698,2]
[361580345,1747623042756,-832.11,0.00013698,2]
[361580346,1747623042766,-400.0,0.00013698,2]
[361580347,1747623042775,-400.0,0.00013698,2]
[361580348,1747623042784,-400.0,0.00013698,2]
[361580349,1747623042793,-400.0,0.00013698,2]
[361580350,1747623042804,-399.00221454,0.00013698,2]
[361580352,1747623042814,-1195.11,0.00013698,2]
[361580354,1747623042823,-400.0,0.00013698,2]
[361580356,1747623042832,-400.0,0.00013698,2]
[361580358,1747623042841,-400.0,0.00013698,2]
[361580360,1747623042850,-403.16,0.00013698,2]
[361580361,1747623042859,-527.03,0.00013698,2]
[361580362,1747623042868,-423.46,0.00013698,2]
[361580363,1747623042877,-400.0,0.00013698,2]
[361580365,1747623042886,-218.22350536,0.00013698,2]
[361580367,1747623042895,-498.94,0.00013698,2]
[361580368,1747623042904,-400.0,0.00013698,2]
[361580370,1747623042913,-1110.94,0.00013698,2]
[361580371,1747623042922,-400.0,0.00013698,2]
[361580373,1747623042931,-810.62,0.00013698,2]
[361580374,1747623042940,-400.0,0.00013698,2]
[361580375,1747623042949,-400.0,0.00013698,2]
[361580376,1747623042958,-543.18,0.00013698,2]
[361580377,1747623042970,-400.0,0.00013698,2]
[361580378,1747623042979,-400.0,0.00013698,2]
[361580379,1747623042988,-1418.91,0.00013698,2]
[361580380,1747623042998,-822.31,0.00013698,2]
[361580381,1747623043008,-400.0,0.00013698,2]
[361580382,1747623043017,-502.01937361,0.00013698,2]
[361580383,1747623043026,-400.0,0.00013698,2]
[361580384,1747623043037,-866.95,0.00013698,2]
[361580385,1747623043046,-510.82,0.00013698,2]
[361580386,1747623043057,-401.12561769,0.00013698,2]
[361580387,1747623043066,-400.0,0.00013698,2]
[361580388,1747623043075,-400.0,0.00013698,2]
[361580389,1747623043084,-588.09,0.00013698,2]
[361580390,1747623043094,-616.69,0.00013698,2]
[361580391,1747623043103,-658.95,0.00013698,2]
[361580392,1747623043112,-400.0,0.00013698,2]
[361580393,1747623043121,-400.0,0.00013698,2]
[361580394,1747623043130,-611.23,0.00013698,2]
[361580395,1747623043141,-1048.59,0.00013698,2]
[361580396,1747623043150,-400.0,0.00013698,2]
[361580397,1747623043163,-569.94,0.00013698,2]
[361580398,1747623043175,-400.0,0.00013698,2]
[361580399,1747623043185,-486.51,0.00013698,2]
[361580400,1747623043195,-400.0,0.00013698,2]
[361580401,1747623043204,-400.0,0.00013698,2]
[361580402,1747623043215,-917.85,0.00013698,2]
[361580403,1747623043224,-489.25,0.00013698,2]
[361580404,1747623043234,-532.98,0.00013698,2]
[361580405,1747623043245,-768.93,0.00013698,2]
[361580406,1747623043256,-400.0,0.00013698,2]
[361580407,1747623043266,-400.43272338,0.00013698,2]
[361580408,1747623043275,-400.0,0.00013698,2]
[361580409,1747623043285,-400.0,0.00013698,2]
[361580410,1747623043294,-1246.99,0.00013698,2]
[361580411,1747623043303,-486.64,0.00013698,2]
[361580412,1747623043312,-400.0,0.00013698,2]
[361580413,1747623043322,-477.65,0.00013698,2]
[361580414,1747623043332,-448.24,0.00013698,2]
[361580415,1747623043341,-401.91926841,0.00013698,2]
[361580416,1747623043351,-654.72,0.00013698,2]
[361580417,1747623043361,-400.0,0.00013698,2]
[361580418,1747623043371,-517.77,0.00013698,2]
[361580419,1747623043380,-500.0,0.00013698,2]
[361580420,1747623043389,-400.0,0.00013698,2]
[361580421,1747623043399,-427.63,0.00013698,2]
[361580422,1747623043408,-490.0,0.00013698,2]
[361580423,1747623043417,-411.08,0.00013698,2]
[361580424,1747623043426,-400.0,0.00013698,2]
[361580426,1747623043436,-951.09,0.00013698,2]
[361580429,1747623043445,-400.0,0.00013698,2]
[361580432,1747623043454,-446.88,0.00013698,2]
[361580435,1747623043464,-502.51086333,0.00013698,2]
[361580436,1747623043473,-893.02,0.00013698,2]
[361580437,1747623043482,-400.0,0.00013698,2]
[361580438,1747623043491,-400.0,0.00013698,2]
[361580439,1747623043500,-402.40683794,0.00013698,2]
[361580440,1747623043510,-723.93,0.00013698,2]
[361580441,1747623043519,-400.0,0.00013698,2]
[361580442,1747623043528,-404.96061157,0.00013698,2]
[361580443,1747623043538,-606.7,0.00013698,2]
[361580444,1747623043547,-400.0,0.00013698,2]
[361580445,1747623043556,-512.77,0.00013698,2]
[361580446,1747623043567,-400.0,0.00013698,2]
[361580447,1747623043577,-404.9063885,0.00013698,2]
[361580448,1747623043586,-777.47,0.00013698,2]
[361580449,1747623043596,-400.0,0.00013698,2]
[361580450,1747623043606,-400.0,0.00013698,2]
[361580451,1747623043614,-400.0,0.00013698,2]
[361580452,1747623043624,-464.98,0.00013698,2]
[361580454,1747623043633,-400.0,0.00013698,2]
[361580456,1747623043643,-400.0,0.00013698,2]
[361580459,1747623043654,-400.0,0.00013698,2]
[361580460,1747623043663,-400.0,0.00013698,2]
[361580463,1747623043672,-441.80007282,0.00013698,2]
[361580465,1747623043683,-400.0,0.00013698,2]
[361580466,1747623043694,-400.0,0.00013698,2]
[361580467,1747623043704,-402.93115769,0.00013698,2]
[361580468,1747623043713,-500.0,0.00013698,2]
[361580469,1747623043721,-500.0,0.00013698,2]
[361580470,1747623043731,-500.0,0.00013698,2]
[361580471,1747623043745,-400.0,0.00013698,2]
[361580472,1747623043757,-572.73,0.00013698,2]
[361580473,1747623043771,-500.0,0.00013698,2]
[361580474,1747623043783,-400.0,0.00013698,2]
[361580475,1747623043795,-500.0,0.00013698,2]
[361580476,1747623043805,-400.91900397,0.00013698,2]
[361580477,1747623043817,-408.80402714,0.00013698,2]
[361580478,1747623043829,-476.26,0.00013698,2]
[361580479,1747623043841,-448.29785865,0.00013698,2]
[361580480,1747623043853,-400.0,0.00013698,2]
[361580481,1747623043865,-403.04689367,0.00013698,2]
[361580482,1747623043878,-400.91902702,0.00013698,2]
[361580483,1747623043891,-400.0,0.00013698,2]
[361580484,1747623043902,-1307.16,0.00013698,2]
[361580485,1747623043913,-407.17600583,0.00013698,2]
[361580486,1747623043922,-400.0,0.00013698,2]
[361580487,1747623043936,-819.51,0.00013698,2]
[361580488,1747623043947,-505.14195804,0.00013698,2]
[361580489,1747623043959,-400.0,0.00013698,2]
[361580490,1747623043974,-402.16602146,0.00013698,2]
[361580491,1747623043986,-400.35985016,0.00013698,2]
[361580492,1747623043999,-500.0,0.00013698,2]
[361580493,1747623044013,-374.54,0.00013698,2]
[361580494,1747623044026,-1229.58,0.00013698,2]
[361580495,1747623044041,-403.42169906,0.00013698,2]
[361580496,1747623044055,-263.14069619,0.00013698,2]
[361580497,1747623044068,-400.0,0.00013698,2]
[361580498,1747623044079,-193.23648156,0.00013698,2]
[361580499,1747623044092,-500.0,0.00013698,2]
[361580500,1747623044105,-500.0,0.00013698,2]
[361580501,1747623044118,-400.0,0.00013698,2]
[361580502,1747623044132,-595.39,0.00013698,2]
[361580503,1747623044148,-400.0,0.00013698,2]
[361580504,1747623044162,-400.0,0.00013698,2]
[361580505,1747623044180,-400.0,0.00013698,2]
[361580506,1747623044193,-599.62,0.00013698,2]
[361580507,1747623044205,-704.56,0.00013698,2]
[361580508,1747623044217,-405.18,0.00013698,2]
[361580509,1747623044228,-803.15,0.00013698,2]
[361580510,1747623044238,-400.0,0.00013698,2]
[361580511,1747623044249,-400.0,0.00013698,2]
[361580512,1747623044259,-400.0,0.00013698,2]
[361580513,1747623044271,-400.0,0.00013698,2]
[361580514,1747623044286,-1231.44,0.00013698,2]
[361580515,1747623044296,-401.31149845,0.00013698,2]
[361580516,1747623044307,-400.0,0.00013698,2]
[361580517,1747623044318,-830.38,0.00013698,2]
[361580518,1747623044328,-598.88,0.00013698,2]
[361580519,1747623044340,-1242.33,0.00013698,2]
[361580520,1747623044352,-400.64276419,0.00013698,2]
[361580521,1747623044366,-405.67533314,0.00013698,2]
[361580522,1747623044378,-400.0,0.00013698,2]
[361580523,1747623044389,-400.63696348,0.00013698,2]
[361580524,1747623044399,-402.27980095,0.00013698,2]
[361580525,1747623044409,-643.43,0.00013698,2]
[361580526,1747623044420,-400.0,0.00013698,2]
[361580527,1747623044431,-400.0,0.00013698,2]
[361580528,1747623044442,-448.93270365,0.00013698,2]
[361580529,1747623044453,-400.0,0.00013698,2]
[361580530,1747623044464,-400.0,0.00013698,2]
[361580531,1747623044475,-615.84,0.00013698,2]
[361580532,1747623044487,-1129.35,0.00013698,2]
[361580533,1747623044498,-400.0,0.00013698,2]
[361580534,1747623044509,-400.0,0.00013698,2]
[361580535,1747623044520,-509.06,0.00013698,2]
[361580536,1747623044531,-513.37480269,0.00013698,2]
[361580537,1747623044543,-545.16,0.00013698,2]
[361580538,1747623044555,-400.0,0.00013698,2]
[361580539,1747623044567,-392.24378495,0.00013698,2]
[361580540,1747623044579,-400.0,0.00013698,2]
[361580541,1747623044599,-401.84657551,0.00013698,2]
[361580542,1747623044610,-400.0,0.00013698,2]
[361580543,1747623044621,-400.0,0.00013698,2]
[361580544,1747623044631,-509.68,0.00013698,2]
[361580545,1747623044643,-400.0,0.00013698,2]
[361580546,1747623044654,-2309.65,0.00013698,2]
[361580547,1747623044665,-541.91,0.00013698,2]
[361580548,1747623044677,-400.0,0.00013698,2]
[361580549,1747623044687,-1559.31,0.00013698,2]
[361580550,1747623044698,-405.79344764,0.00013698,2]
[361580551,1747623044709,-400.0,0.00013698,2]
[361580552,1747623044720,-400.0,0.00013698,2]
[361580553,1747623044732,-406.24688466,0.00013698,2]
[361580554,1747623044743,-400.0,0.00013698,2]
[361580555,1747623044754,-400.0,0.00013698,2]
[361580556,1747623044765,-400.0,0.00013698,2]
[361580557,1747623044778,-402.62129474,0.00013698,2]
[361580558,1747623044789,-1519.6,0.00013698,2]
[361580559,1747623044801,-326.85586927,0.00013698,2]
[361580560,1747623044813,-885.17,0.00013698,2]
[361580561,1747623044825,-400.0,0.00013698,2]
[361580562,1747623044836,-400.0,0.00013698,2]
[361580563,1747623044847,-400.0,0.00013698,2]
[361580564,1747623044858,-400.0,0.00013698,2]
[361580565,1747623044869,-693.97,0.00013698,2]
[361580566,1747623044880,-1398.54,0.00013698,2]
[361580567,1747623044892,-467.24,0.00013698,2]
[361580568,1747623044903,-460.65,0.00013698,2]
[361580569,1747623044914,-553.34,0.00013698,2]
[361580570,1747623044925,-982.28,0.00013698,2]
[361580571,1747623044936,-400.0,0.00013698,2]
[361580572,1747623044947,-406.24203093,0.00013698,2]
[361580573,1747623044958,-407.44775357,0.00013698,2]
[361580574,1747623044972,-400.0,0.00013698,2]
[361580575,1747623044982,-243.2090618,0.00013698,2]
[361580576,1747623044993,-794.06,0.00013698,2]
[361580577,1747623045006,-368.11762588,0.00013698,2]
[361580578,1747623045017,-611.77,0.00013698,2]
[361580579,1747623045029,-400.0,0.00013698,2]
[361580580,1747623045042,-400.0,0.00013698,2]
[361580581,1747623045055,-500.0,0.00013698,2]
[361580582,1747623045066,-500.0,0.00013698,2]
[361580583,1747623045077,-597.28,0.00013698,2]
[361580584,1747623045088,-496.06,0.00013698,2]
[361580585,1747623045101,-1023.73,0.00013698,2]
[361580586,1747623045112,-400.0,0.00013698,2]
[361580587,1747623045124,-400.0,0.00013698,2]
[361580588,1747623045135,-400.0,0.00013698,2]
[361580589,1747623045147,-1100.17,0.00013698,2]
[361580590,1747623045160,-400.0,0.00013698,2]
[361580591,1747623045173,-871.88,0.00013698,2]
[361580592,1747623045185,-400.0,0.00013698,2]
[361580593,1747623045198,-400.0,0.00013698,2]
[361580594,1747623045209,-400.0,0.00013698,2]
[361580595,1747623045221,-615.34,0.00013698,2]
[361580596,1747623045234,-400.0,0.00013698,2]
[361580597,1747623045246,-400.0,0.00013698,2]
[361580598,1747623045260,-1216.52,0.00013698,2]
[361580599,1747623045270,-400.0,0.00013698,2]
[361580600,1747623045281,-504.88308893,0.00013698,2]
[361580601,1747623045293,-400.0,0.00013698,2]
[361580602,1747623045304,-1191.65,0.00013698,2]
[361580603,1747623045318,-407.28262984,0.00013698,2]
[361580604,1747623045329,-1267.17,0.00013698,2]
[361580605,1747623045340,-401.13989239,0.00013698,2]
[361580606,1747623045351,-400.0,0.00013698,2]
[361580607,1747623045363,-1040.38,0.00013698,2]
[361580608,1747623045374,-1600.19,0.00013698,2]
[361580609,1747623045385,-400.0,0.00013698,2]
[361580610,1747623045396,-400.0,0.00013698,2]
[361580611,1747623045407,-400.0,0.00013698,2]
[361580612,1747623045419,-400.0,0.00013698,2]
[361580613,1747623045431,-400.0,0.00013698,2]
[361580614,1747623045441,-400.0,0.00013698,2]
[361580615,1747623045453,-400.0,0.00013698,2]
[361580616,1747623045464,-400.0,0.00013698,2]
[361580617,1747623045475,-693.88,0.00013698,2]
[361580618,1747623045486,-690.57,0.00013698,2]
[361580619,1747623045497,-943.64,0.00013698,2]
[361580620,1747623045508,-400.0,0.00013698,2]
[361580621,1747623045519,-400.0,0.00013698,2]
[361580622,1747623045530,-425.96,0.00013698,2]
[361580623,1747623045541,-677.73,0.00013698,2]
[361580624,1747623045552,-461.2,0.00013698,2]
[361580625,1747623045564,-400.0,0.00013698,2]
[361580626,1747623045575,-400.0,0.00013698,2]
[361580627,1747623045586,-450.35,0.00013698,2]
[361580628,1747623045597,-402.12069124,0.00013698,2]
[361580629,1747623045608,-400.0,0.00013698,2]
[361580630,1747623045619,-545.69,0.00013698,2]
[361580631,1747623045630,-400.0,0.00013698,2]
[361580632,1747623045641,-400.0,0.00013698,2]
[361580633,1747623045652,-400.0,0.00013698,2]
[361580634,1747623045663,-400.0,0.00013698,2]
[361580635,1747623045674,-400.0,0.00013698,2]
[361580636,1747623045686,-851.72,0.00013698,2]
[361580637,1747623045696,-400.0,0.00013698,2]
[361580638,1747623045707,-477.96,0.00013698,2]
[361580639,1747623045718,-400.0,0.00013698,2]
[361580640,1747623045728,-310.80069139,0.00013698,2]
[361580641,1747623045740,-608.65,0.00013698,2]
[361580643,1747623045751,-400.0,0.00013698,2]
[361580646,1747623045761,-400.0,0.00013698,2]
[361580648,1747623045772,-400.0,0.00013698,2]
[361580650,1747623045783,-671.18,0.00013698,2]
[361580651,1747623045793,-1007.82,0.00013698,2]
[361580652,1747623045804,-400.0,0.00013698,2]
[361580653,1747623045818,-403.99204062,0.00013698,2]
[361580654,1747623045830,-400.0,0.00013698,2]
[361580656,1747623045841,-400.0,0.00013698,2]
[361580658,1747623045851,-400.0,0.00013698,2]
[361580660,1747623045863,-400.0,0.00013698,2]
[361580663,1747623045874,-400.0,0.00013698,2]
[361580665,1747623045885,-1147.48,0.00013698,2]
[361580667,1747623045896,-832.17,0.00013698,2]
[361580669,1747623045907,-400.0,0.00013698,2]
[361580671,1747623045917,-400.0,0.00013698,2]
[361580673,1747623045928,-400.0,0.00013698,2]
[361580675,1747623045939,-400.0,0.00013698,2]
[361580678,1747623045950,-491.3,0.00013698,2]
[361580680,1747623045962,-762.24,0.00013698,2]
[361580682,1747623045974,-548.93,0.00013698,2]
[361580684,1747623045985,-400.0,0.00013698,2]
[361580685,1747623045995,-400.0,0.00013698,2]
[361580686,1747623046006,-729.82,0.00013698,2]
[361580687,1747623046016,-626.74,0.00013698,2]
[361580688,1747623046026,-400.0,0.00013698,2]
[361580689,1747623046037,-400.0,0.00013698,2]
[361580690,1747623046051,-596.03,0.00013698,2]
[361580691,1747623046063,-400.0,0.00013698,2]
[361580692,1747623046073,-400.0,0.00013698,2]
[361580693,1747623046084,-991.02,0.00013698,2]
[361580694,1747623046094,-400.0,0.00013698,2]
[361580695,1747623046105,-400.0,0.00013698,2]
[361580696,1747623046115,-434.24,0.00013698,2]
[361580697,1747623046125,-480.62,0.00013698,2]
[361580698,1747623046135,-400.0,0.00013698,2]
[361580699,1747623046147,-400.0,0.00013698,2]
[361580700,1747623046159,-580.42,0.00013698,2]
[361580701,1747623046169,-975.65,0.00013698,2]
[361580702,1747623046180,-1056.35,0.00013698,2]
[361580703,1747623046192,-401.95708254,0.00013698,2]
[361580704,1747623046203,-400.0,0.00013698,2]
[361580705,1747623046214,-400.0,0.00013698,2]